fUSD/lending_fUSD_20260427
["ID","MTS","AMOUNT","RATE_DAILY","PERIOD"]
[421213618,1777260661511,-904.4252899,0.00032352,60]
[421213619,1777260661521,-168.8887828,0.00032352,60]
[421213620,1777260661531,-500.0,0.00032352,60]
[421213621,1777260661540,-500.0,0.00032352,60]
[421213622,1777260661549,-500.0,0.00032352,60]
[421213623,1777260661563,-500.0,0.00032352,60]
[421213624,1777260661573,-199.8957445,0.00032352,60]
[421213625,1777260661583,-555.486071,0.00032352,60]
[421213626,1777260661592,-1000.0,0.00032365,2]
[421213627,1777260661602,-1000.0,0.00032373,2]
[421213628,1777260661611,-1000.0,0.00032381,2]
[421213629,1777260661620,-1000.0,0.00032384,2]
[421213630,1777260661629,-1000.0,0.00032385,2]
[421213631,1777260661639,-1000.0,0.00032393,2]
[421213632,1777260661648,-478.09,0.00032395,2]
[421213633,1777260661657,-1000.0,0.00032405,2]
[421213634,1777260661666,-1000.0,0.00032408,2]
[421213635,1777260661676,-1000.0,0.00032411,2]
[421213636,1777260661686,-1000.0,0.00032422,2]
[421213637,1777260661695,-1000.0,0.00032423,2]
[421213638,1777260661704,-1000.0,0.00032428,2]
[421213639,1777260661713,-1000.0,0.0003243,2]
[421213640,1777260661722,-1000.0,0.00032433,2]
[421213641,1777260661732,-351.5,0.00032438,30]
[421213642,1777260661741,-1000.0,0.00032442,2]
[421213643,1777260661751,-1000.0,0.00032489,2]
[421213644,1777260661760,-1000.0,0.00032495,2]
[421213645,1777260661768,-1000.0,0.00032499,2]
[421213646,1777260661778,-1000.0,0.00032503,2]
[421213647,1777260661787,-1000.0,0.00032511,2]
[421213648,1777260661796,-1000.0,0.00032515,2]
[421213649,1777260661806,-85.23195259,0.00032515,2]
[421213650,1777260661819,-653.74439782,0.00032515,2]
[421213651,1777260661938,-414.27799472,0.00027397,2]
[421213652,1777260661950,-445.3297252,0.00027397,2]
[421213653,1777260667798,501.0,0.00032876,120]
[421213656,1777261148887,20010.0,0.00032877,120]
[421213657,1777261151552,150.0,0.00032877,120]
[421213658,1777261312177,202.50909909,0.000328,120]
[421213659,1777261641949,500.0,7e-05,2]
[421213674,1777261831580,-404.30213,7.197e-05,2]
[421213676,1777261831593,-673.90711308,7.197e-05,2]
[421213680,1777261831692,-314.48155123,7.197e-05,2]
[421213681,1777261831846,-3630.58380221,7.197e-05,2]
[421213682,1777261831857,-150.0,7.197e-05,2]
[421213683,1777261831867,-245.0,7.197e-05,2]
[421213684,1777261831877,-236.64789133,7.197e-05,2]
[421213685,1777261831887,-500.0,7.198e-05,2]
[421213686,1777261831897,-500.0,7.198e-05,2]
[421213688,1777261831907,-500.0,7.198e-05,2]
[421213690,1777261831917,-500.0,7.198e-05,2]
[421213691,1777261831927,-500.0,7.198e-05,2]
[421213692,1777261831937,-500.0,7.198e-05,2]
[421213693,1777261831948,-500.0,7.198e-05,2]
[421213694,1777261831959,-500.0,7.198e-05,2]
[421213695,1777261831969,-500.0,7.198e-05,2]
[421213696,1777261831979,-500.0,7.198e-05,2]
[421213697,1777261831989,-500.0,7.198e-05,2]
[421213698,1777261831999,-500.0,7.198e-05,2]
[421213700,1777261832009,-500.0,7.198e-05,2]
[421213701,1777261832019,-500.0,7.198e-05,2]
[421213702,1777261832029,-500.0,7.198e-05,2]
[421213704,1777261832039,-500.0,7.198e-05,2]
[421213706,1777261832049,-500.0,7.198e-05,2]
[421213707,1777261832059,-500.0,7.198e-05,2]
[421213708,1777261832069,-500.0,7.198e-05,2]
[421213709,1777261832079,-500.0,7.198e-05,2]
[421213710,1777261832089,-500.0,7.198e-05,2]
[421213711,1777261832099,-500.0,7.198e-05,2]
[421213712,1777261832110,-500.0,7.198e-05,2]
[421213713,1777261832120,-500.0,7.198e-05,2]
[421213714,1777261832130,-500.0,7.198e-05,2]
[421213715,1777261832139,-500.0,7.198e-05,2]
[421213716,1777261832150,-500.0,7.198e-05,2]
[421213717,1777261832160,-500.0,7.198e-05,2]
[421213718,1777261832170,-500.0,7.198e-05,2]
[421213719,1777261832180,-500.0,7.198e-05,2]
[421213720,1777261832190,-500.0,7.198e-05,2]
[421213721,1777261832200,-500.0,7.198e-05,2]
[421213722,1777261832210,-500.0,7.198e-05,2]
[421213723,1777261832220,-500.0,7.198e-05,2]
[421213724,1777261832229,-500.0,7.198e-05,2]
[421213725,1777261832239,-500.0,7.198e-05,2]
[421213726,1777261832249,-500.0,7.198e-05,2]
[421213727,1777261832259,-500.0,7.198e-05,2]
[421213728,1777261832269,-500.0,7.198e-05,2]
[421213729,1777261832278,-500.0,7.198e-05,2]
[421213730,1777261832288,-500.0,7.198e-05,2]
[421213731,1777261832299,-500.0,7.198e-05,2]
[421213732,1777261832309,-500.0,7.198e-05,2]
[421213733,1777261832318,-500.0,7.198e-05,2]
[421213734,1777261832328,-500.0,7.198e-05,2]
[421213735,1777261832338,-500.0,7.198e-05,2]
[421213736,1777261832348,-500.0,7.198e-05,2]
[421213737,1777261832358,-500.0,7.198e-05,2]
[421213738,1777261832369,-500.0,7.198e-05,2]
[421213739,1777261832379,-500.0,7.198e-05,2]
[421213740,1777261832389,-500.0,7.198e-05,2]
[421213741,1777261832400,-500.0,7.198e-05,2]
[421213742,1777261832410,-350.66147296,7.198e-05,2]
[421213743,1777261832420,-500.0,7.198e-05,2]
[421213744,1777261832430,-500.0,7.198e-05,2]
[421213745,1777261832440,-500.0,7.198e-05,2]
[421213746,1777261832449,-500.0,7.198e-05,2]
[421213747,1777261832459,-500.0,7.198e-05,2]
[421213748,1777261832469,-500.0,7.198e-05,2]
[421213749,1777261832478,-500.0,7.198e-05,2]
[421213750,1777261832487,-500.0,7.198e-05,2]
[421213751,1777261832497,-500.0,7.198e-05,2]
[421213752,1777261832507,-500.0,7.198e-05,2]
[421213753,1777261832517,-500.0,7.198e-05,2]
[421213754,1777261832527,-500.0,7.198e-05,2]
[421213755,1777261832537,-500.0,7.198e-05,2]
[421213756,1777261832546,-500.0,7.198e-05,2]
[421213757,1777261832556,-318.0726425,7.198e-05,2]
[421213758,1777261832566,-500.0,7.198e-05,2]
[421213759,1777261832576,-500.0,7.198e-05,2]
[421213760,1777261832586,-500.0,7.198e-05,2]
[421213761,1777261832595,-500.0,7.198e-05,2]
[421213762,1777261832605,-500.0,7.198e-05,2]
[421213763,1777261832615,-500.0,7.198e-05,2]
[421213764,1777261832625,-500.0,7.198e-05,2]
[421213765,1777261832634,-500.0,7.198e-05,2]
[421213766,1777261832644,-500.0,7.198e-05,2]
[421213767,1777261832654,-500.0,7.198e-05,2]
[421213768,1777261832664,-500.0,7.198e-05,2]
[421213769,1777261832674,-500.0,7.198e-05,2]
[421213770,1777261832684,-500.0,7.198e-05,2]
[421213771,1777261832694,-500.0,7.198e-05,2]
[421213772,1777261832704,-500.0,7.198e-05,2]
[421213773,1777261832714,-500.0,7.198e-05,2]
[421213774,1777261832724,-500.0,7.198e-05,2]
[421213775,1777261832734,-500.0,7.198e-05,2]
[421213776,1777261832744,-500.0,7.198e-05,2]
[421213777,1777261832754,-500.0,7.198e-05,2]
[421213778,1777261832764,-500.0,7.198e-05,2]
[421213779,1777261832774,-500.0,7.198e-05,2]
[421213780,1777261832783,-531.62516151,7.198e-05,2]
[421213781,1777261832793,-5329.99088766,7.198e-05,2]
[421213782,1777261832803,-250.0,7.198e-05,2]
[421213783,1777261832813,-87323.6041007,7.199e-05,2]
[421213784,1777261832852,-2541.88067365,7.199e-05,2]
[421213785,1777261832864,-3058.05257101,7.199e-05,2]
[421213786,1777261832876,-6559.57065935,7.199e-05,2]
[421213787,1777261832891,-1455.63824514,7.199e-05,2]
[421213788,1777261832903,-4796.4,7.199e-05,2]
[421213798,1777261838165,-102506.44146152,7.199e-05,2]
[421213800,1777261838178,-304.0,7.199e-05,2]
[421213851,1777261839836,-3532.20722519,7.199e-05,2]
[421213862,1777261842837,-271071.95534193,7.199e-05,2]
[421213863,1777261842942,-1098.4972095,7.199e-05,2]
[421213867,1777261846988,-4289.56438707,7.199e-05,2]
[421213876,1777261872017,-6116.9639904,7.098e-05,2]
[421213877,1777261872179,-10000.01,7.098e-05,2]
[421213878,1777261872291,-10000.01,7.098e-05,2]
[421213879,1777261872398,-10000.01,7.098e-05,2]
[421213880,1777261872517,-10000.01,7.098e-05,2]
[421213881,1777261872624,-10000.01,7.098e-05,2]
[421213882,1777261872762,-10000.01,7.098e-05,2]
[421213883,1777261872853,-10000.01,7.098e-05,2]
[421213884,1777261872962,-10000.01,7.098e-05,2]
[421213885,1777261913699,-5000.0,7.098e-05,2]
[421213886,1777261916765,-5000.0,7.098e-05,2]
[421213887,1777261940541,-3855.0,7.098e-05,2]
[421213888,1777261962636,-319.1155096,7.098e-05,2]
[421213889,1777261962659,-244.0,7.098e-05,2]
[421213890,1777261962682,-4436.8844904,7.184e-05,2]
[421213891,1777261964670,-5000.0,7.184e-05,2]
[421213892,1777261966021,-5000.0,7.184e-05,2]
[421213893,1777261970790,-5000.0,7.184e-05,2]
[421213894,1777261985783,-1335.728242,7.184e-05,2]
[421213895,1777262028313,-10000.01,7.098e-05,2]
[421213896,1777262028331,-10000.01,7.098e-05,2]
[421213897,1777262033486,-10000.01,7.098e-05,2]
[421213898,1777262033591,-10000.01,7.098e-05,2]
[421213899,1777262094637,-150.0,7.097e-05,2]
[421213900,1777262094659,-300.0,7.097e-05,2]
[421213901,1777262094681,-244.0,7.097e-05,2]
[421213902,1777262094707,-4306.0,7.098e-05,2]
[421213903,1777262101825,-300.0,7.097e-05,2]
[421213904,1777262101847,-1200.0,7.097e-05,2]
[421213905,1777262101873,-2600.0,7.098e-05,2]
[421213906,1777262122446,-5000.0,7.098e-05,2]
[421213907,1777262132739,-500.0,7.097e-05,2]
[421213908,1777262132762,-500.0,7.097e-05,2]
[421213909,1777262132785,-500.0,7.097e-05,2]
[421213910,1777262132808,-567.87712969,7.097e-05,2]
[421213911,1777262132832,-409.80827621,7.097e-05,2]
[421213912,1777262132854,-500.0,7.097e-05,2]
[421213913,1777262132877,-500.0,7.097e-05,2]
[421213914,1777262132899,-500.0,7.097e-05,2]
[421213915,1777262132920,-591.20421867,7.097e-05,2]
[421213916,1777262132941,-371.11037543,7.097e-05,2]
[421213917,1777262152885,-129.79908124,7.097e-05,2]
[421213918,1777262152907,-500.1444427,7.097e-05,2]
[421213919,1777262152933,-500.0,7.097e-05,2]
[421213920,1777262152960,-520.93148756,7.097e-05,2]
[421213921,1777262152985,-520.93148756,7.097e-05,2]
[421213922,1777262153007,-500.0,7.097e-05,2]
[421213923,1777262153034,-520.93148756,7.097e-05,2]
[421213924,1777262153055,-647.88173638,7.097e-05,2]
[421213925,1777262153082,-520.93148756,7.097e-05,2]
[421213926,1777262153110,-520.93148756,7.097e-05,2]
[421213927,1777262153136,-520.93148756,7.097e-05,2]
[421213928,1777262153162,-520.93148756,7.097e-05,2]
[421213929,1777262153188,-520.93148756,7.097e-05,2]
[421213930,1777262153214,-261.7228392,7.097e-05,2]
[421213931,1777262294383,1400.0,0.00032876,120]
[421213935,1777262493311,-500.00224184,6.956e-05,2]
[421213936,1777262496752,-716.62723011,6.956e-05,2]
[421213937,1777262499319,-216.62626128,6.956e-05,2]
[421213938,1777262500756,-180.69662149,6.956e-05,2]
[421213939,1777262502091,-391.60345209,6.956e-05,2]
[421213940,1777262504762,-172.0255236,6.956e-05,2]
[421213941,1777262505659,-600.23166959,6.956e-05,2]
[421213942,1777262505688,-216.433,6.956e-05,2]
[421213943,1777262542487,251.0,0.00032877,120]
[421213980,1777262708891,-200.0,7e-05,2]
[421213981,1777262793773,1680.0,0.00032,120]
[421213982,1777262826588,800.0,7e-05,2]
[421213983,1777262844263,1089.68226848,0.0003287,120]
[421213993,1777263005957,8800.01,6.997e-05,2]
[421213994,1777263005982,10000.01,6.997e-05,2]
[421213995,1777263006006,10000.01,6.997e-05,2]
[421213996,1777263006030,4156.0708,6.997e-05,2]
[421213999,1777263031981,-250.0,7.087e-05,2]
[421214000,1777263031993,-244.0,7.087e-05,2]
[421214001,1777263032005,-37.49460082,7.094e-05,2]
[421214005,1777263032086,-1162.50539918,7.094e-05,2]
[421214006,1777263032099,-300.0,7.095e-05,2]
[421214007,1777263032110,-300.0,7.095e-05,2]
[421214008,1777263033561,-3133.62311959,7.095e-05,2]
[421214009,1777263033594,-1000.0,7.096e-05,2]
[421214010,1777263033626,-315.24608245,7.096e-05,2]
[421214011,1777263033653,-2487.93964206,7.096e-05,2]
[421214012,1777263033663,-150.0,7.096e-05,2]
[421214013,1777263033672,-259.20864836,7.097e-05,2]
[421214014,1777263033682,-520.93148756,7.097e-05,2]
[421214015,1777263033692,-520.93148756,7.097e-05,2]
[421214016,1777263033701,-520.93148756,7.097e-05,2]
[421214017,1777263033711,-520.93148756,7.097e-05,2]
[421214018,1777263033720,-520.93148756,7.097e-05,2]
[421214019,1777263033729,-520.93148756,7.097e-05,2]
[421214020,1777263033738,-520.93148756,7.097e-05,2]
[421214021,1777263033748,-520.93148756,7.097e-05,2]
[421214022,1777263033758,-520.93148756,7.097e-05,2]
[421214023,1777263033767,-520.93148756,7.097e-05,2]
[421214024,1777263033777,-520.93148756,7.097e-05,2]
[421214025,1777263033787,-520.93148756,7.097e-05,2]
[421214026,1777263033797,-520.93148756,7.097e-05,2]
[421214027,1777263033807,-520.93148756,7.097e-05,2]
[421214028,1777263033817,-520.93148756,7.097e-05,2]
[421214029,1777263033826,-520.93148756,7.097e-05,2]
[421214030,1777263033835,-520.93148756,7.097e-05,2]
[421214031,1777263033845,-520.93148756,7.097e-05,2]
[421214032,1777263033855,-520.93148756,7.097e-05,2]
[421214033,1777263033864,-520.93148756,7.097e-05,2]
[421214034,1777263033874,-520.93148756,7.097e-05,2]
[421214035,1777263033884,-520.93148756,7.097e-05,2]
[421214036,1777263033894,-520.93148756,7.097e-05,2]
[421214037,1777263033903,-520.93148756,7.097e-05,2]
[421214038,1777263033913,-520.93148756,7.097e-05,2]
[421214039,1777263033923,-520.93148756,7.097e-05,2]
[421214040,1777263033933,-520.93148756,7.097e-05,2]
[421214041,1777263033942,-520.93148756,7.097e-05,2]
[421214042,1777263033951,-520.93148756,7.097e-05,2]
[421214043,1777263033961,-520.93148756,7.097e-05,2]
[421214044,1777263033970,-520.93148756,7.097e-05,2]
[421214045,1777263033980,-520.93148756,7.097e-05,2]
[421214046,1777263033990,-520.93148756,7.097e-05,2]
[421214047,1777263033999,-520.93148756,7.097e-05,2]
[421214048,1777263034009,-520.93148756,7.097e-05,2]
[421214049,1777263034018,-520.93148756,7.097e-05,2]
[421214050,1777263034027,-520.93148756,7.097e-05,2]
[421214051,1777263034037,-520.93148756,7.097e-05,2]
[421214052,1777263034046,-520.93148756,7.097e-05,2]
[421214053,1777263034056,-520.93148756,7.097e-05,2]
[421214054,1777263034066,-520.93148756,7.097e-05,2]
[421214055,1777263034076,-520.93148756,7.097e-05,2]
[421214056,1777263034085,-520.93148756,7.097e-05,2]
[421214057,1777263034094,-520.93148756,7.097e-05,2]
[421214058,1777263034103,-520.93148756,7.097e-05,2]
[421214059,1777263034112,-520.93148756,7.097e-05,2]
[421214060,1777263034122,-520.93148756,7.097e-05,2]
[421214061,1777263034130,-520.93148756,7.097e-05,2]
[421214062,1777263034141,-1092.99495804,7.097e-05,2]
[421214063,1777263034150,-1092.99495804,7.097e-05,2]
[421214064,1777263034159,-1092.99495804,7.097e-05,2]
[421214065,1777263034169,-1092.99495804,7.097e-05,2]
[421214066,1777263034178,-1092.99495804,7.097e-05,2]
[421214067,1777263034189,-1092.99495804,7.097e-05,2]
[421214068,1777263034199,-1092.99495804,7.097e-05,2]
[421214069,1777263034208,-1092.99495804,7.097e-05,2]
[421214070,1777263034217,-1092.99495804,7.097e-05,2]
[421214071,1777263034227,-1092.99495804,7.097e-05,2]
[421214072,1777263034236,-1092.99495804,7.097e-05,2]
[421214073,1777263034246,-1092.99495804,7.097e-05,2]
[421214074,1777263034256,-1092.99495804,7.097e-05,2]
[421214075,1777263034265,-1092.99495804,7.097e-05,2]
[421214076,1777263034274,-1092.99495804,7.097e-05,2]
[421214077,1777263034284,-1092.99495804,7.097e-05,2]
[421214078,1777263034293,-1092.99495804,7.097e-05,2]
[421214079,1777263034302,-1092.99495804,7.097e-05,2]
[421214080,1777263034311,-1092.99495804,7.097e-05,2]
[421214081,1777263034321,-1092.99495804,7.097e-05,2]
[421214082,1777263034330,-1092.99495804,7.097e-05,2]
[421214083,1777263034339,-1092.99495804,7.097e-05,2]
[421214084,1777263034348,-1092.99495804,7.097e-05,2]
[421214085,1777263034357,-1092.99495804,7.097e-05,2]
[421214086,1777263034367,-1092.99495804,7.097e-05,2]
[421214087,1777263034376,-1092.99495804,7.097e-05,2]
[421214088,1777263034385,-1092.99495804,7.097e-05,2]
[421214089,1777263034394,-1092.99495804,7.097e-05,2]
[421214090,1777263034404,-1092.99495804,7.097e-05,2]
[421214091,1777263034413,-1092.99495804,7.097e-05,2]
[421214092,1777263034422,-1092.99495804,7.097e-05,2]
[421214093,1777263034432,-1356.11442497,7.097e-05,2]
[421214094,1777263034441,-1356.11442497,7.097e-05,2]
[421214095,1777263034450,-1356.11442497,7.097e-05,2]
[421214096,1777263034460,-1356.11442497,7.097e-05,2]
[421214097,1777263034469,-1356.11442497,7.097e-05,2]
[421214098,1777263034479,-1356.11442497,7.097e-05,2]
[421214099,1777263034488,-1356.11442497,7.097e-05,2]
[421214100,1777263034497,-1356.11442497,7.097e-05,2]
[421214101,1777263034507,-1356.11442497,7.097e-05,2]
[421214102,1777263034516,-1356.11442497,7.097e-05,2]
[421214103,1777263034526,-1356.11442497,7.097e-05,2]
[421214104,1777263034535,-1356.11442497,7.097e-05,2]
[421214105,1777263034545,-1356.11442497,7.097e-05,2]
[421214106,1777263034555,-250.0,7.097e-05,2]
[421214107,1777263034564,-40695.9384338,7.111e-05,2]
[421214108,1777263034573,-14096.0,7.111e-05,2]
[421214109,1777263034587,-13430.5588758,7.182e-05,2]
[421214110,1777263034596,-9999.99,7.182e-05,2]
[421214111,1777263034606,-999.99,7.182e-05,2]
[421214112,1777263034615,-9999.99,7.182e-05,2]
[421214113,1777263034624,-267.36,7.182e-05,2]
[421214114,1777263034634,-4999.99,7.182e-05,2]
[421214115,1777263034643,-9999.99,7.182e-05,2]
[421214116,1777263034652,-9999.99,7.198e-05,2]
[421214117,1777263034660,-299.99,7.198e-05,2]
[421214118,1777263034670,-1213.37,7.198e-05,2]
[421214119,1777263034679,-150.99,7.198e-05,2]
[421214120,1777263034688,-792.63511719,7.198e-05,2]
[421214121,1777263034698,-2063.07580558,7.198e-05,2]
[421214122,1777263034708,-250.0,7.345e-05,2]
[421214123,1777263034718,-150.0,7.654e-05,2]
[421214124,1777263034727,-150.0,7.654e-05,2]
[421214125,1777263034736,-250.0,7.795e-05,2]
[421214126,1777263034746,-250.0,7.795e-05,2]
[421214127,1777263034755,-1680.0,7.803e-05,2]
[421214128,1777263034765,-420.0,7.804e-05,2]
[421214129,1777263034775,-255.0,7.805e-05,2]
[421214130,1777263034785,-13430.5588758,7.955e-05,2]
[421214131,1777263034794,-9080.4912601,8.03e-05,2]
[421214132,1777263034803,-2026.1314691,8.235e-05,2]
[421214133,1777263034812,-228.68,8.429e-05,2]
[421214134,1777263034822,-587.0,8.584e-05,2]
[421214135,1777263034831,-1920.0,8.584e-05,2]
[421214136,1777263034840,-433.0,8.586e-05,2]
[421214137,1777263034850,-13430.5588758,8.728e-05,2]
[421214138,1777263034859,-152.0,8.774e-05,7]
[421214139,1777263034868,-152.0,8.782e-05,7]
[421214140,1777263034877,-33096.7482,8.809e-05,2]
[421214141,1777263034887,-206.5782,8.809e-05,2]
[421214142,1777263034897,-4634.9964056,8.828e-05,2]
[421214143,1777263034906,-500.0,8.883e-05,2]
[421214144,1777263034915,-500.0,8.908e-05,2]
[421214145,1777263034924,-500.0,8.908e-05,2]
[421214146,1777263034934,-125018.66714355,8.909e-05,2]
[421214147,1777263034948,-16823.07506613,8.909e-05,2]
[421214148,1777263034958,-1600.0,9e-05,3]
[421214149,1777263034967,-1034.2074902,9.195e-05,2]
[421214150,1777263034976,-514.76882695,9.431e-05,2]
[421214151,1777263034986,-823.0,9.443e-05,2]
[421214152,1777263034995,-150.87380379,9.468e-05,2]
[421214153,1777263035005,-150.0,9.468e-05,2]
[421214154,1777263035014,-150.0,9.468e-05,2]
[421214155,1777263035022,-150.0,9.468e-05,2]
[421214156,1777263035031,-150.0,9.468e-05,2]
[421214157,1777263035040,-201.56775173,9.468e-05,2]
[421214158,1777263035050,-150.0,9.468e-05,2]
[421214159,1777263035059,-150.0,9.468e-05,2]
[421214160,1777263035068,-13430.5588758,9.502e-05,2]
[421214161,1777263035078,-150.0,9.509e-05,2]
[421214162,1777263035087,-150.0,9.549e-05,2]
[421214163,1777263035096,-150.0,9.567e-05,2]
[421214164,1777263035105,-150.0,9.567e-05,2]
[421214165,1777263035115,-150.0,9.59e-05,2]
[421214166,1777263035124,-150.0,9.616e-05,2]
[421214167,1777263035133,-150.0,9.619e-05,2]
[421214168,1777263035143,-150.0,9.63e-05,2]
[421214169,1777263035152,-150.0,9.644e-05,2]
[421214170,1777263035162,-150.0,9.644e-05,2]
[421214171,1777263035171,-1795.48118464,9.67e-05,2]
[421214172,1777263035184,-12748.51881536,9.67e-05,2]
[421214173,1777263035193,-8915.03,9.67e-05,2]
[421214174,1777263035202,-150.0,9.671e-05,2]
[421214175,1777263035211,-150.0,9.711e-05,2]
[421214176,1777263035220,-150.0,9.752e-05,2]
[421214177,1777263035229,-150.0,9.769e-05,2]
[421214178,1777263035238,-150.0,9.792e-05,2]
[421214179,1777263035247,-150.0,9.819e-05,2]
[421214180,1777263035256,-150.0,9.819e-05,2]
[421214181,1777263035265,-150.0,9.833e-05,2]
[421214182,1777263035274,-150.0,9.873e-05,2]
[421214183,1777263035284,-150.0,9.884e-05,2]
[421214184,1777263035293,-150.0,9.914e-05,2]
[421214185,1777263035303,-150.0,9.919e-05,2]
[421214186,1777263035312,-150.0,9.954e-05,2]
[421214187,1777263035321,-150.0,9.995e-05,2]
[421214188,1777263035330,-150.0,9.995e-05,2]
[421214189,1777263035339,-150.0,9.995e-05,2]
[421214190,1777263035349,-150.0,9.995e-05,2]
[421214191,1777263035358,-18500.02,0.0001,2]
[421214192,1777263035367,-374.43930617,0.0001,2]
[421214193,1777263035376,-151.0,0.0001,2]
[421214194,1777263035386,-368.4379815,0.0001,2]
[421214195,1777263035395,-368.4379815,0.0001,2]
[421214196,1777263035405,-368.4379815,0.0001,2]
[421214197,1777263035414,-151.0,0.0001,2]
[421214198,1777263035423,-151.0,0.0001,2]
[421214199,1777263035432,-151.0,0.0001,2]
[421214200,1777263035441,-151.0,0.0001,2]
[421214201,1777263035451,-151.0,0.0001,2]
[421214202,1777263035460,-151.0,0.0001,2]
[421214203,1777263035470,-151.0,0.0001,2]
[421214204,1777263035479,-151.0,0.0001,2]
[421214205,1777263035489,-151.0,0.0001,2]
[421214206,1777263035498,-151.0,0.0001,2]
[421214207,1777263035507,-151.0,0.0001,2]
[421214208,1777263035516,-151.0,0.0001,2]
[421214209,1777263035526,-151.0,0.0001,2]
[421214210,1777263035535,-151.0,0.0001,2]
[421214211,1777263035545,-500.0,0.0001,2]
[421214212,1777263035554,-151.0,0.0001,2]
[421214213,1777263035563,-500.0,0.0001,2]
[421214214,1777263035573,-151.0,0.0001,2]
[421214215,1777263035582,-500.0,0.0001,2]
[421214216,1777263035592,-500.0,0.0001,2]
[421214217,1777263035601,-500.0,0.0001,2]
[421214218,1777263035610,-500.0,0.0001,2]
[421214219,1777263035620,-500.0,0.0001,2]
[421214220,1777263035629,-500.0,0.0001,2]
[421214221,1777263035638,-500.0,0.0001,2]
[421214222,1777263035647,-500.0,0.0001,2]
[421214223,1777263035656,-151.0,0.0001,2]
[421214224,1777263035666,-500.0,0.0001,2]
[421214225,1777263035675,-500.0,0.0001,2]
[421214226,1777263035684,-151.0,0.0001,2]
[421214227,1777263035695,-500.0,0.0001,2]
[421214228,1777263035705,-500.0,0.0001,2]
[421214229,1777263035714,-151.0,0.0001,2]
[421214230,1777263035723,-500.0,0.0001,2]
[421214231,1777263035733,-500.0,0.0001,2]
[421214232,1777263035742,-151.0,0.0001,2]
[421214233,1777263035751,-500.0,0.0001,2]
[421214234,1777263035760,-500.0,0.0001,2]
[421214235,1777263035770,-151.0,0.0001,2]
[421214236,1777263035779,-500.0,0.0001,2]
[421214237,1777263035788,-500.0,0.0001,2]
[421214238,1777263035798,-151.0,0.0001,2]
[421214239,1777263035807,-500.0,0.0001,2]
[421214240,1777263035816,-500.0,0.0001,2]
[421214241,1777263035825,-151.0,0.0001,2]
[421214242,1777263035834,-500.0,0.0001,2]
[421214243,1777263035843,-500.0,0.0001,2]
[421214244,1777263035853,-151.0,0.0001,2]
[421214245,1777263035862,-500.0,0.0001,2]
[421214246,1777263035872,-500.0,0.0001,2]
[421214247,1777263035881,-151.0,0.0001,2]
[421214248,1777263035890,-500.0,0.0001,2]
[421214249,1777263035899,-500.0,0.0001,2]
[421214250,1777263035908,-151.0,0.0001,2]
[421214251,1777263035917,-500.0,0.0001,2]
[421214252,1777263035926,-151.0,0.0001,2]
[421214253,1777263035935,-500.0,0.0001,2]
[421214254,1777263035944,-151.0,0.0001,2]
[421214255,1777263035953,-500.0,0.0001,2]
[421214256,1777263035963,-151.0,0.0001,2]
[421214257,1777263035972,-500.0,0.0001,2]
[421214258,1777263035981,-151.0,0.0001,2]
[421214259,1777263035990,-286.09257819,0.0001,2]
[421214260,1777263035999,-150.0,0.00010035,2]
[421214261,1777263036008,-150.0,0.0001007,2]
[421214262,1777263036017,-150.0,0.00010075,2]
[421214263,1777263036026,-150.0,0.00010116,2]
[421214264,1777263036036,-150.0,0.00010151,2]
[421214265,1777263036045,-150.0,0.00010156,2]
[421214266,1777263036054,-150.0,0.0001017,2]
[421214267,1777263036063,-150.0,0.0001017,2]
[421214268,1777263036073,-300.0,0.00010191,2]
[421214269,1777263036082,-150.0,0.00010197,2]
[421214270,1777263036092,-150.0,0.0001022,2]
[421214271,1777263036101,-150.0,0.00010237,2]
[421214272,1777263036110,-150.0,0.00010278,2]
[421214273,1777263036120,-150.0,0.00010318,2]
[421214274,1777263036129,-150.0,0.00010345,2]
[421214275,1777263036138,-150.0,0.00010345,2]
[421214276,1777263036147,-150.0,0.00010359,2]